bitfinex-derivatives/quotes_BTCF0:USTF0_20250119
["timestamp","ask_amount","ask_price","bid_price","bid_amount"]
[1737325349132,0.00144715,103740.0,103720.0,0.45253224]
[1737325350127,0.04971715,103740.0,103720.0,0.40425624]
[1737325350328,0.3608,103730.0,103720.0,0.04345624]
[1737325350523,0.409071,103730.0,103720.0,0.04345624]
[1737325350932,0.409071,103730.0,103720.0,0.02414424]
[1737325350933,0.53263562,103730.0,103720.0,0.02414424]
[1737325351327,0.83263562,103730.0,103720.0,0.02402146]
[1737325351836,0.84034562,103730.0,103720.0,0.02402146]
[1737325352026,0.048283,103710.0,103690.0,0.4495]
[1737325352229,0.409083,103710.0,103690.0,0.47364951]
[1737325352536,0.409083,103710.0,103690.0,0.52193951]
[1737325352739,0.409085,103700.0,103690.0,0.02414951]
[1737325353044,0.048285,103700.0,103690.0,0.02414951]
[1737325353839,0.409085,103700.0,103690.0,0.02414951]
[1737325354638,0.3608,103700.0,103690.0,0.02414951]
[1737325354841,0.00771,103710.0,103690.0,0.07243751]
[1737325355436,0.36851,103730.0,103700.0,0.048285]
[1737325355632,0.36851,103730.0,103710.0,0.048279]
[1737325355841,0.00771,103730.0,103710.0,0.409079]
[1737325356025,0.00771,103730.0,103720.0,0.3608]
[1737325356638,0.04971415,103740.0,103720.0,0.3608]
[1737325357038,0.02553715,103740.0,103720.0,0.53263962]
[1737325357442,0.02866715,103740.0,103720.0,0.409075]
[1737325358029,0.07693515,103740.0,103720.0,0.3608]
[1737325358228,0.3608,103730.0,103710.0,0.16924066]
[1737325358537,0.409073,103730.0,103720.0,0.16924066]
[1737325358727,0.416783,103730.0,103720.0,0.16924066]
[1737325358933,0.716783,103730.0,103710.0,0.22565421]
[1737325359135,0.53264062,103720.0,103710.0,0.22565421]
[1737325359534,0.83264062,103720.0,103710.0,0.06931621]
[1737325359734,0.048285,103700.0,103690.0,0.06931621]
[1737325359930,0.409085,103700.0,103690.0,0.06931621]
[1737325360135,0.409085,103700.0,103680.0,0.62064603]
[1737325360136,0.36851,103700.0,103680.0,0.62064603]
[1737325360440,0.40909,103690.0,103680.0,0.62054908]
[1737325360641,0.40909,103690.0,103680.0,5.9e-07]
[1737325360943,0.70909,103690.0,103680.0,5.9e-07]
[1737325361246,0.048303,103670.0,103640.0,0.048312]
[1737325361448,0.409105,103660.0,103640.0,0.048312]
[1737325361746,0.409105,103660.0,103640.0,0.07247304]
[1737325362537,0.409105,103660.0,103640.0,0.048312]
[1737325363234,0.048305,103660.0,103640.0,0.409112]
[1737325363432,0.1325095,103670.0,103650.0,0.409106]
[1737325363634,0.0842095,103670.0,103660.0,0.048304]
[1737325363841,0.0842095,103670.0,103660.0,0.409104]
[1737325364034,0.4933045,103680.0,103660.0,0.048304]
[1737325364240,0.48436462,103670.0,103620.0,0.01167326]
[1737325364542,0.048324,103620.0,103600.0,0.10154522]
[1737325364744,0.3608,103610.0,103600.0,0.14987722]
[1737325364938,0.3608,103610.0,103600.0,0.57800909]
[1737325365253,0.3608,103610.0,103600.0,0.86740804]
[1737325365638,0.409114,103640.0,103600.0,1.27653804]
[1737325365848,0.409114,103640.0,103630.0,0.28939895]
[1737325366637,0.409114,103640.0,103630.0,0.31356457]
[1737325366843,0.048314,103640.0,103630.0,0.31356457]
[1737325367143,0.409114,103640.0,103630.0,0.28939895]
[1737325367342,0.53267862,103640.0,103620.0,0.2101]
[1737325367543,0.409118,103630.0,103620.0,0.49949895]
[1737325368734,0.409118,103630.0,103620.0,0.2101]
[1737325368944,0.048318,103630.0,103620.0,0.49949895]
[1737325369343,0.048318,103630.0,103620.0,0.54782195]
[1737325369541,0.048318,103630.0,103620.0,0.28939895]
[1737325369850,0.048327,103610.0,103600.0,0.10154522]
[1737325370054,0.048327,103610.0,103600.0,0.39094417]
[1737325370843,0.409127,103610.0,103600.0,0.39094417]
[1737325371542,0.048327,103610.0,103600.0,0.39094417]
[1737325371743,0.051417,103610.0,103600.0,0.39094417]
[1737325372539,0.412217,103610.0,103600.0,0.39094417]
[1737325372750,0.051417,103610.0,103600.0,0.39094417]
[1737325374243,0.051417,103610.0,103600.0,0.75174417]
[1737325374656,0.00309,103610.0,103600.0,0.75174417]
[1737325374854,0.00309,103610.0,103600.0,0.39094417]
[1737325375446,0.48436462,103630.0,103600.0,0.75174417]
[1737325375447,0.409119,103630.0,103600.0,0.75174417]
[1737325375742,0.409119,103630.0,103620.0,0.28939895]
[1737325376142,0.048319,103630.0,103620.0,0.33772195]
[1737325376348,0.409115,103640.0,103620.0,0.69852195]
[1737325376653,0.3608,103650.0,103620.0,0.69852195]
[1737325376654,0.40911,103650.0,103630.0,0.69851695]
[1737325376853,0.40911,103650.0,103640.0,0.28939895]
[1737325377544,0.40911,103650.0,103640.0,0.33771195]
[1737325378048,0.40911,103650.0,103640.0,0.28939895]
[1737325378249,0.048317,103640.0,103620.0,0.048322]
[1737325378457,0.409117,103640.0,103630.0,0.28939895]
[1737325379150,0.416827,103640.0,103630.0,0.28939895]
[1737325379343,0.416827,103640.0,103620.0,0.2316]
[1737325379549,0.409118,103630.0,103620.0,0.52099895]
[1737325379851,0.056028,103630.0,103620.0,0.52099895]
[1737325380655,0.416828,103630.0,103620.0,0.2316]
[1737325382857,0.056028,103630.0,103620.0,0.56932195]
[1737325383157,0.056028,103630.0,103620.0,0.93012195]
[1737325383955,0.00771,103630.0,103620.0,0.93012195]
[1737325384160,0.056024,103640.0,103630.0,0.048318]
[1737325384458,0.056024,103640.0,103630.0,0.69851695]
[1737325385453,0.04831,103650.0,103640.0,0.048313]
[1737325385757,0.04831,103650.0,103640.0,0.69851195]
[1737325386562,0.048305,103660.0,103640.0,0.69851195]
[1737325386756,0.4933105,103670.0,103650.0,0.048309]
[1737325387054,0.16000294,103680.0,103660.0,0.65019895]
[1737325387249,0.16000294,103680.0,103670.0,0.69849795]
[1737325387652,0.11170694,103680.0,103670.0,0.33769795]
[1737325387851,0.13782334,103690.0,103670.0,0.69849795]
[1737325388158,0.13782334,103690.0,103680.0,0.69849395]
[1737325388348,0.048288,103700.0,103690.0,0.04829]
[1737325388548,0.048288,103700.0,103690.0,0.33768895]
[1737325388949,0.16538801,103720.0,103690.0,0.69848895]
[1737325389252,0.57446601,103720.0,103710.0,0.28939895]
[1737325389457,0.59856601,103720.0,103710.0,0.28939895]
[1737325390360,0.072378,103720.0,103710.0,0.28939895]
[1737325390753,0.3849,103720.0,103710.0,0.28939895]
[1737325390961,0.3849,103720.0,103710.0,0.33767995]
[1737325392257,0.048272,103730.0,103710.0,0.69847995]
[1737325392558,0.048272,103730.0,103720.0,0.65019895]
[1737325392559,0.055982,103730.0,103720.0,0.65019895]
[1737325392855,0.055982,103730.0,103720.0,0.69847495]
[1737325392856,0.00771,103730.0,103720.0,0.69847495]
[1737325396656,0.00771,103730.0,103720.0,0.82203957]
[1737325399160,0.04971013,103750.0,103720.0,0.82203957]
[1737325399467,0.04971013,103750.0,103740.0,1.01099895]
[1737325401858,0.04971013,103750.0,103740.0,1.05926595]
[1737325402366,0.05742013,103750.0,103740.0,0.55363296]
[1737325402569,0.08151013,103750.0,103740.0,0.55363296]
[1737325403059,0.08151013,103750.0,103740.0,0.91443296]
[1737325404975,0.08151013,103750.0,103740.0,0.33766595]
[1737325405175,0.08151013,103750.0,103740.0,0.69846595]
[1737325406874,0.0318,103750.0,103740.0,0.69846595]
[1737325407774,0.0318,103750.0,103740.0,1.04233057]
[1737325409571,0.03951,103750.0,103740.0,1.04233057]
[1737325411164,0.03951,103750.0,103740.0,0.5811]
[1737325411368,0.087772,103750.0,103740.0,0.87049895]
[1737325411567,0.087772,103750.0,103740.0,0.65019895]
[1737325412973,0.21507815,103790.0,103770.0,0.048253]
[1737325413174,0.16683415,103790.0,103780.0,0.69844695]
[1737325413573,0.16683415,103790.0,103780.0,0.82201157]
[1737325413767,0.16683415,103790.0,103780.0,0.69844695]
[1737325413975,0.00144614,103790.0,103780.0,0.69844695]
[1737325415576,0.1,103800.0,103780.0,0.82201157]
[1737325415780,0.1,103800.0,103790.0,0.69844195]
[1737325416471,0.23457092,103830.0,103810.0,0.040532]
[1737325416670,0.23457092,103830.0,103810.0,0.449563]
[1737325416671,0.24644103,103830.0,103810.0,0.449563]
[1737325416875,0.06009711,103830.0,103820.0,0.3608]
[1737325417069,0.06009711,103830.0,103820.0,0.40903]
[1737325418270,0.048227,103830.0,103820.0,0.69842895]
[1737325418577,0.24262151,103840.0,103830.0,0.048225]
[1737325418872,0.24262151,103840.0,103830.0,0.409025]
[1737325419076,0.24262151,103840.0,103830.0,0.3608]
[1737325419374,0.19049317,103840.0,103830.0,0.409025]
[1737325419569,0.19049317,103840.0,103830.0,0.20640796]
[1737325420075,0.19819317,103840.0,103830.0,0.20640796]
[1737325420272,0.14997017,103840.0,103830.0,0.20640796]
[1737325420465,0.00914583,103840.0,103830.0,0.49580691]
[1737325422966,0.05736583,103840.0,103830.0,0.49580691]
[1737325423366,0.0077,103840.0,103830.0,0.49580691]
[1737325424980,0.0077,103840.0,103820.0,0.3608]
[1737325425186,0.048225,103830.0,103820.0,0.65019895]
[1737325425683,0.048225,103830.0,103800.0,0.3608]
[1737325425887,0.048239,103800.0,103790.0,0.00144504]
[1737325426075,0.048239,103800.0,103790.0,0.29084399]
[1737325427182,0.048239,103800.0,103790.0,0.65164399]
[1737325427385,0.048239,103800.0,103790.0,0.00144504]
[1737325427784,0.048239,103800.0,103780.0,0.3608]
[1737325428080,0.048243,103790.0,103780.0,0.3608]
[1737325429181,0.048243,103790.0,103780.0,0.65019895]
[1737325429382,0.04824,103800.0,103790.0,0.048242]
[1737325429686,0.04824,103800.0,103790.0,0.409042]
[1737325429983,0.04824,103800.0,103790.0,0.69844095]
[1737325430284,0.00144565,103820.0,103800.0,0.048239]
[1737325430582,0.04967665,103820.0,103810.0,0.65019895]
[1737325430978,0.05737665,103820.0,103810.0,0.69843295]
[1737325431176,0.00914565,103820.0,103810.0,0.69843295]
[1737325431590,0.14082434,103830.0,103820.0,0.04823]
[1737325431776,0.055923,103840.0,103830.0,0.048225]
[1737325432083,0.055923,103840.0,103830.0,0.69842395]
[1737325434373,0.055923,103840.0,103830.0,0.65019895]
[1737325436090,0.063623,103840.0,103830.0,0.65019895]
[1737325436991,0.048225,103830.0,103820.0,0.3608]
[1737325437286,0.048225,103830.0,103820.0,0.65019895]
[1737325437678,0.048225,103830.0,103820.0,0.28939895]
[1737325438185,0.048225,103830.0,103810.0,0.3608]
[1737325438489,0.048225,103830.0,103820.0,0.65019895]
[1737325439385,0.048225,103830.0,103820.0,0.69842895]
[1737325439689,0.0077,103830.0,103820.0,0.69842895]
[1737325440585,0.14852434,103840.0,103830.0,0.048225]
[1737325440884,0.14852434,103840.0,103830.0,1.04028857]
[1737325441278,0.04823,103820.0,103810.0,0.3608]
[1737325441582,0.048239,103800.0,103790.0,0.23079534]
[1737325441785,0.409039,103800.0,103790.0,0.23079534]
[1737325442386,0.409039,103800.0,103790.0,0.2293504]
[1737325442583,0.53260362,103800.0,103780.0,0.28739629]
[1737325442780,0.409043,103790.0,103780.0,0.28739629]
[1737325442982,0.048252,103780.0,103760.0,0.41050154]
[1737325443290,0.048252,103780.0,103770.0,0.409053]
[1737325443478,0.14082434,103800.0,103770.0,0.65019895]
[1737325443674,0.18906334,103800.0,103780.0,0.2164]
[1737325443881,0.048243,103790.0,103780.0,0.2164]
[1737325444090,0.048243,103790.0,103770.0,0.65019895]
[1737325444091,0.048248,103780.0,103770.0,0.3608]
[1737325444388,0.048248,103780.0,103770.0,0.65019895]
[1737325445181,0.055948,103780.0,103770.0,0.65019895]
[1737325447897,0.0077,103780.0,103770.0,0.69845195]
[1737325448084,0.055948,103780.0,103770.0,0.69845195]
[1737325448285,0.0077,103780.0,103770.0,0.69845195]
[1737325448689,0.16083549,103790.0,103770.0,0.69845195]
[1737325448993,0.16083549,103790.0,103780.0,0.65019895]
[1737325449194,0.18491549,103790.0,103780.0,0.65019895]
[1737325449586,0.072325,103790.0,103780.0,0.65019895]
[1737325449791,0.03178,103790.0,103780.0,0.69844695]
[1737325449988,0.03178,103790.0,103780.0,0.65019895]
[1737325450294,0.080023,103790.0,103780.0,0.3608]
[1737325450590,0.048248,103780.0,103770.0,0.3608]
[1737325450892,0.048248,103780.0,103770.0,0.65019895]
[1737325455395,0.048248,103780.0,103770.0,0.28989982]
[1737325455597,0.048248,103780.0,103770.0,0.65069982]
[1737325455795,0.12863144,103780.0,103770.0,0.36130087]
[1737325456098,0.48943144,103780.0,103750.0,0.00010999]
[1737325456303,0.48944044,103760.0,103750.0,0.00010999]
[1737325456502,0.48944044,103760.0,103730.0,0.28739629]
[1737325456503,0.12865044,103740.0,103730.0,0.28739629]
[1737325456798,0.48945044,103740.0,103730.0,0.28739629]
[1737325457700,0.048271,103730.0,103720.0,0.2326]
[1737325457998,0.12876519,103730.0,103720.0,0.2326]
[1737325458791,0.04838175,103730.0,103720.0,0.2326]
[1737325458990,0.048276,103720.0,103710.0,0.3608]
[1737325459193,0.04836755,103720.0,103710.0,0.65019895]
[1737325459395,0.409069,103740.0,103710.0,0.65019895]
[1737325459594,0.73828035,103760.0,103730.0,0.65019895]
[1737325459789,0.048271,103740.0,103720.0,0.28939895]
[1737325459993,0.048267,103740.0,103720.0,0.28939895]
[1737325460191,0.048261,103760.0,103740.0,0.048266]
[1737325460390,0.17232752,103750.0,103730.0,0.3608]
[1737325460593,0.048275,103730.0,103720.0,0.3608]
[1737325460896,0.048259,103760.0,103740.0,0.33766395]
[1737325461092,0.048259,103760.0,103750.0,0.28939895]
[1737325461287,0.048262,103750.0,103740.0,0.3608]
[1737325461489,0.048271,103740.0,103720.0,0.409076]
[1737325461691,0.04832581,103730.0,103720.0,0.65019895]
[1737325462298,0.05603581,103730.0,103720.0,0.69847495]
[1737325462494,0.048257,103760.0,103730.0,0.048268]
[1737325462701,0.048257,103760.0,103750.0,0.65019895]
[1737325463400,0.048271,103730.0,103720.0,0.3608]
[1737325463602,0.048271,103730.0,103720.0,0.409076]
[1737325463795,0.048271,103730.0,103720.0,0.69847495]
[1737325464190,0.048271,103730.0,103720.0,0.65019895]
[1737325464398,0.048271,103730.0,103720.0,0.3608]
[1737325464604,0.048271,103730.0,103720.0,0.65019895]
[1737325464902,0.048271,103730.0,103720.0,0.69365714]
[1737325465301,0.048267,103740.0,103720.0,0.74193314]
[1737325465490,0.048267,103740.0,103730.0,0.3608]
[1737325465692,0.048267,103740.0,103730.0,0.87139895]
[1737325466804,0.048267,103740.0,103730.0,0.91966995]
[1737325467500,0.048263,103750.0,103740.0,0.048267]
[1737325467694,0.048263,103750.0,103740.0,0.55446595]
[1737325467896,0.048263,103750.0,103740.0,0.54964877]
[1737325468193,0.048263,103750.0,103740.0,0.65019895]
[1737325468799,0.048258,103760.0,103740.0,0.69846295]
[1737325468999,0.048258,103760.0,103740.0,0.45251507]
[1737325469205,0.53312352,103760.0,103730.0,0.582]
[1737325469399,0.53312352,103760.0,103730.0,0.91485061]
[1737325469400,0.048267,103740.0,103730.0,0.91485061]
[1737325469601,0.048267,103740.0,103730.0,0.9148528]
[1737325469800,0.048267,103740.0,103730.0,0.87139895]
[1737325471408,0.048267,103740.0,103730.0,0.91485273]
[1737325471601,0.11259049,103760.0,103730.0,0.91485273]
[1737325471803,0.02409,103740.0,103730.0,0.67372478]
[1737325472003,0.048263,103750.0,103740.0,0.048267]
[1737325472305,0.11259049,103760.0,103740.0,0.69846595]
[1737325472507,0.16084949,103760.0,103750.0,0.28939895]
[1737325473011,0.16084949,103760.0,103750.0,0.65019895]
[1737325473610,0.048259,103760.0,103750.0,0.65019895]
[1737325475505,0.048259,103760.0,103750.0,0.28939895]
[1737325475807,0.048259,103760.0,103750.0,0.65019895]
[1737325476011,0.47339049,103770.0,103750.0,0.65019895]
[1737325476306,0.048253,103770.0,103760.0,0.69074595]
[1737325476500,0.18907734,103770.0,103760.0,0.73419415]
[1737325476697,0.19677734,103770.0,103760.0,0.73419415]
[1737325476903,0.19677734,103770.0,103760.0,0.68593715]
[1737325477108,0.048257,103760.0,103740.0,0.631166]
[1737325477306,0.19677934,103770.0,103760.0,0.28939895]
[1737325477511,0.19677934,103770.0,103760.0,0.65019895]
[1737325477904,0.048257,103760.0,103750.0,0.3608]
[1737325478100,0.048257,103760.0,103750.0,0.65019895]
[1737325478809,0.048257,103760.0,103750.0,0.67433637]
[1737325479210,0.048257,103760.0,103750.0,0.02413742]
[1737325479608,0.409057,103760.0,103750.0,0.02413742]
[1737325479809,0.048271,103730.0,103720.0,0.2168]
[1737325480009,0.048271,103730.0,103720.0,0.91045633]
[1737325480311,0.048259,103760.0,103740.0,0.048267]
[1737325480605,0.18908334,103760.0,103750.0,0.65019895]
[1737325480813,0.26951194,103760.0,103740.0,0.3608]
[1737325481112,0.048271,103730.0,103720.0,0.851475]
[1737325481303,0.048271,103730.0,103720.0,1.18432865]
[1737325481812,0.1286996,103730.0,103710.0,0.59627945]
[1737325482017,0.048276,103720.0,103710.0,0.88085702]
[1737325482319,0.048273,103730.0,103720.0,0.28939895]
[1737325482617,0.048273,103730.0,103720.0,0.69365757]
[1737325485213,0.048268,103740.0,103720.0,0.74193357]
[1737325485410,0.048268,103740.0,103730.0,0.28939895]
[1737325486624,0.048276,103720.0,103710.0,0.54799945]
[1737325486819,0.048276,103720.0,103710.0,0.52005893]
[1737325487117,0.048276,103720.0,103710.0,0.88085893]
[1737325487515,0.048276,103720.0,103710.0,0.86653765]
[1737325488414,0.048276,103720.0,103710.0,0.69365948]
[1737325489310,0.51588645,103740.0,103710.0,0.74194048]
[1737325489514,0.048273,103730.0,103710.0,0.45254153]
[1737325489817,0.048273,103730.0,103720.0,0.048276]
[1737325490015,0.20335345,103740.0,103720.0,0.76607952]
[1737325490213,0.20335345,103740.0,103730.0,0.28939895]
[1737325490518,0.18909134,103740.0,103730.0,0.72261459]
[1737325490819,0.18909134,103740.0,103730.0,0.76607004]
[1737325491013,0.14082434,103740.0,103730.0,0.76606861]
[1737325491206,0.18908734,103750.0,103740.0,0.048267]
[1737325491415,0.18908734,103750.0,103740.0,1.19241059]
[1737325492119,0.18908734,103750.0,103740.0,1.23585906]
[1737325492710,0.048263,103750.0,103740.0,1.23585906]
[1737325492916,0.04826,103760.0,103750.0,0.048262]
[1737325493217,0.04826,103760.0,103750.0,0.36180559]
[1737325493623,0.04826,103760.0,103750.0,0.72260559]
[1737325494515,0.19677834,103770.0,103760.0,0.048257]
[1737325494822,0.19677834,103770.0,103760.0,0.72260059]
[1737325495620,0.20346838,103780.0,103760.0,0.76604337]
[1737325495818,0.18907334,103780.0,103770.0,0.33765195]
[1737325496125,0.18907334,103780.0,103770.0,0.36179659]
[1737325497021,0.19677334,103780.0,103770.0,0.36179659]
[1737325497217,0.19677334,103780.0,103770.0,0.72259659]
[1737325497412,0.14852434,103780.0,103770.0,0.80302519]
[1737325497617,0.21851258,103790.0,103780.0,0.048248]
[1737325497816,0.21851258,103790.0,103780.0,0.59719159]
[1737325498026,0.24259258,103790.0,103780.0,0.57304695]
[1737325498722,0.08147042,103790.0,103780.0,0.57304695]
[1737325498921,0.16189902,103790.0,103780.0,0.2354]
[1737325499121,0.08147042,103790.0,103780.0,0.52479895]
[1737325500213,0.08147042,103790.0,103780.0,0.2354]
[1737325500415,0.03322642,103790.0,103780.0,0.32708234]
[1737325500718,0.03322642,103790.0,103760.0,0.22113517]
[1737325500719,0.048253,103770.0,103760.0,0.22113517]
[1737325500911,0.44227342,103790.0,103780.0,0.28939895]
[1737325501114,0.08147342,103790.0,103780.0,0.33764695]
[1737325501315,0.048253,103770.0,103760.0,0.22113517]
[1737325501511,0.16189802,103790.0,103780.0,0.28939895]
[1737325501724,0.52269802,103790.0,103780.0,0.28939895]
[1737325501923,0.048253,103770.0,103760.0,0.3608]
[1737325502221,0.048253,103770.0,103760.0,0.65019895]
[1737325502518,0.048257,103760.0,103750.0,1.02923917]
[1737325502718,0.048257,103760.0,103750.0,1.33794648]
[1737325502924,0.048257,103760.0,103750.0,1.16506831]
[1737325504027,0.048257,103760.0,103750.0,1.16506917]
[1737325504917,0.048257,103760.0,103750.0,1.11680817]
[1737325505331,0.048257,103760.0,103750.0,1.09749895]
[1737325505815,0.048257,103760.0,103750.0,0.73669895]
[1737325506216,0.048257,103760.0,103750.0,1.09749895]
[1737325507122,0.048257,103760.0,103750.0,1.11680835]
[1737325508422,0.048257,103760.0,103750.0,1.09749895]
[1737325510029,0.048257,103760.0,103750.0,0.73669895]
[1737325510330,0.048257,103760.0,103750.0,1.09749895]
[1737325511725,0.048257,103760.0,103750.0,1.1168082]
[1737325511933,0.048257,103760.0,103750.0,1.11680847]
[1737325512130,0.048257,103760.0,103750.0,1.11680833]
[1737325512333,0.048257,103760.0,103750.0,1.11680834]
[1737325512635,0.048257,103760.0,103750.0,1.11680882]
[1737325513331,0.048257,103760.0,103750.0,1.1409448]
[1737325513632,0.048257,103760.0,103750.0,1.11680774]
[1737325513834,0.048257,103760.0,103750.0,0.73669895]
[1737325514231,0.048257,103760.0,103750.0,0.51639895]
[1737325514740,0.055967,103760.0,103750.0,0.51639895]
[1737325516231,0.14045151,103760.0,103750.0,0.51639895]
[1737325519442,0.14045151,103760.0,103750.0,0.87719895]
[1737325520533,0.14045151,103760.0,103750.0,0.51639895]
[1737325520938,0.14045151,103760.0,103750.0,0.97907213]
[1737325521129,0.09219451,103760.0,103750.0,1.02251965]
[1737325522033,0.00771,103760.0,103750.0,1.19539782]
[1737325522438,0.13273751,103770.0,103750.0,1.20989444]
[1737325522742,0.13273751,103770.0,103760.0,0.98636713]
[1737325522942,0.13273751,103770.0,103760.0,1.02981465]
[1737325523329,0.13273751,103770.0,103760.0,1.27101465]
[1737325523534,0.048253,103770.0,103760.0,1.67432896]
[1737325523940,0.08448451,103780.0,103760.0,1.67432896]
[1737325524137,0.13273351,103780.0,103770.0,0.70381013]
[1737325524338,0.08448451,103780.0,103770.0,0.75206313]
[1737325524541,0.08448451,103780.0,103770.0,0.79550173]
[1737325524737,0.04969142,103790.0,103770.0,0.9683799]
[1737325524934,0.05739142,103790.0,103780.0,0.65019895]
[1737325525144,0.05739142,103790.0,103780.0,0.69844695]
[1737325525343,0.05739142,103790.0,103780.0,0.7418814]
[1737325525644,0.00914642,103790.0,103780.0,0.82222578]
[1737325525845,0.21706216,103800.0,103780.0,0.82222578]
[1737325526036,0.21706216,103800.0,103790.0,0.65019895]
[1737325526341,0.04824,103800.0,103790.0,0.308701]
[1737325526843,0.21705716,103810.0,103790.0,0.82221734]
[1737325527043,0.21705716,103810.0,103800.0,0.32993795]
[1737325527242,0.21705716,103810.0,103800.0,0.69073795]
[1737325527436,0.21705716,103810.0,103800.0,0.71003793]
[1737325527640,0.21705716,103810.0,103800.0,0.81450817]
[1737325527948,0.048232,103820.0,103800.0,0.68592371]
[1737325528247,0.055932,103820.0,103810.0,0.28169895]
[1737325529042,0.055932,103820.0,103810.0,0.55673295]
[1737325529447,0.063632,103820.0,103810.0,0.55673295]
[1737325530145,0.063632,103820.0,103810.0,0.58945066]
[1737325530539,0.063632,103820.0,103810.0,0.95025066]
[1737325531141,0.0154,103820.0,103810.0,1.03059612]
[1737325531448,0.00144562,103830.0,103820.0,0.04823]
[1737325531647,0.00144562,103830.0,103820.0,1.03037169]
[1737325532248,0.18931322,103840.0,103820.0,0.98214169]
[1737325532443,0.19701322,103840.0,103830.0,0.77106941]
[1737325532645,0.16882216,103850.0,103830.0,0.79036669]
[1737325532949,0.048216,103850.0,103840.0,0.77106441]
[1737325533145,0.048216,103850.0,103840.0,0.79036169]
[1737325533349,0.048216,103850.0,103840.0,0.79035706]
[1737325533538,0.79031169,103890.0,103840.0,0.79035706]
[1737325533539,0.55375268,103890.0,103840.0,0.54078357]
[1737325533736,0.27564668,103920.0,103890.0,0.048197]
[1737325533941,0.048188,103910.0,103900.0,0.3531]
[1737325534142,0.048188,103910.0,103900.0,0.3608]
[1737325534344,0.048192,103900.0,103890.0,0.3608]
[1737325534546,0.048198,103890.0,103870.0,0.3608]
[1737325534743,0.12854746,103880.0,103870.0,0.01928385]
[1737325535044,0.048198,103890.0,103870.0,0.048205]
[1737325535244,0.0077,103880.0,103870.0,0.409005]
[1737325535545,0.00144501,103910.0,103880.0,0.048199]
[1737325535745,0.00144501,103910.0,103900.0,0.3608]
[1737325536445,0.00144501,103910.0,103900.0,0.408992]
[1737325536638,0.00913501,103910.0,103900.0,0.48933746]
[1737325536844,0.00913501,103910.0,103900.0,0.408992]
[1737325537041,0.01682501,103910.0,103900.0,0.48933746]
[1737325537446,0.282075,103940.0,103900.0,0.50861758]
[1737325537646,0.05013469,103950.0,103930.0,0.3608]
[1737325537861,0.00144468,103950.0,103930.0,0.408977]
[1737325538241,0.00144468,103950.0,103930.0,0.48932246]
[1737325538442,0.00144468,103950.0,103940.0,0.3608]
[1737325538845,0.00913468,103950.0,103940.0,0.408974]
[1737325540361,0.01309193,103980.0,103970.0,0.04816]
[1737325540649,0.12849646,103990.0,103970.0,0.3608]
[1737325540854,0.12850246,103980.0,103950.0,0.408967]
[1737325541148,0.08034546,103960.0,103930.0,0.37448198]
[1737325541350,0.048179,103930.0,103910.0,0.048186]
[1737325541650,0.36849,103930.0,103910.0,0.048185]
[1737325542046,0.00769,103930.0,103910.0,0.048185]
[1737325542252,0.416669,103930.0,103910.0,0.048185]
[1737325542443,0.416669,103930.0,103910.0,0.12853046]
[1737325542838,0.416669,103930.0,103910.0,0.048185]
[1737325543251,0.3608,103950.0,103920.0,0.08034546]
[1737325543449,0.00144389,103970.0,103940.0,0.048173]
[1737325543756,0.00144389,103970.0,103950.0,0.48931446]
[1737325544345,0.00144389,103970.0,103960.0,0.048165]
[1737325544549,0.00913389,103970.0,103960.0,0.12851046]
[1737325545752,0.00913389,103970.0,103960.0,0.48931046]
[1737325545753,0.00769,103970.0,103960.0,0.48931046]
[1737325546554,0.3608,103980.0,103970.0,0.04816]
[1737325546756,0.508947,104000.0,103980.0,0.048154]
[1737325546952,0.3608,103990.0,103980.0,0.048154]
[1737325547451,0.508947,104000.0,103980.0,0.048154]
[1737325547957,0.516637,104000.0,103980.0,0.048154]
[1737325548162,0.54883546,104000.0,103960.0,0.01303802]
[1737325548456,0.54883546,104000.0,103950.0,0.67554546]
[1737325548457,0.048165,103960.0,103940.0,0.3608]
[1737325548657,0.048165,103960.0,103940.0,0.408971]
[1737325548859,0.408965,103960.0,103940.0,0.048171]
[1737325549250,0.408965,103960.0,103940.0,0.06130873]
[1737325549450,0.408965,103960.0,103940.0,0.048171]
[1737325549762,1.9e-07,103970.0,103950.0,0.52149092]
[1737325549952,0.10769,104000.0,103990.0,0.048151]
[1737325550157,0.2267,104030.0,104020.0,0.048137]
[1737325550363,0.37413239,104070.0,104020.0,0.44114546]
[1737325550555,0.37413239,104070.0,104010.0,0.3608]
[1737325550556,0.2267,104050.0,104040.0,0.44114546]
[1737325550755,0.2267,104050.0,104040.0,0.48927246]
[1737325551450,0.23438,104050.0,104040.0,0.48927246]
[1737325551656,0.048128,104040.0,104020.0,0.408935]
[1737325551858,0.048128,104040.0,104030.0,0.3608]
[1737325552256,0.23438,104050.0,104030.0,0.3608]
[1737325552257,0.23438,104050.0,104040.0,0.048128]
[1737325552460,0.23438,104050.0,104040.0,0.408928]
[1737325553153,0.00768,104050.0,104040.0,0.408928]
[1737325554762,0.00768,104050.0,104040.0,0.3608]
[1737325554968,0.04813,104040.0,104030.0,0.3608]
[1737325556056,0.04813,104040.0,104030.0,0.00349]
[1737325556762,0.04813,104040.0,104030.0,0.40274]
[1737325557766,0.04813,104040.0,104030.0,0.450872]
[1737325558467,0.04813,104040.0,104030.0,0.090072]
[1737325558666,0.04813,104040.0,104030.0,0.450872]
[1737325559265,0.04813,104040.0,104030.0,0.494752]
[1737325559564,0.04813,104040.0,104030.0,0.08582]
[1737325560269,0.04813,104040.0,104030.0,0.44662]
[1737325560473,0.04813,104040.0,104030.0,0.08582]
[1737325560863,0.27963,104040.0,104030.0,0.08582]
[1737325561369,0.048137,104020.0,104010.0,0.04814]
[1737325561564,0.048128,104040.0,104020.0,0.048134]
[1737325561771,0.048128,104040.0,104030.0,0.408932]
[1737325562074,0.048128,104040.0,104030.0,0.048132]
[1737325562375,0.048132,104030.0,104020.0,0.408935]
[1737325562564,0.048132,104030.0,104020.0,0.39925]
[1737325563070,0.408932,104030.0,104020.0,0.03845]
[1737325563465,0.048132,104030.0,104020.0,0.03845]
[1737325563660,0.76216546,104040.0,104020.0,0.39925]
[1737325563661,0.048129,104040.0,104020.0,0.39925]
[1737325563868,0.048129,104040.0,104030.0,0.40893]
[1737325564466,0.048129,104040.0,104030.0,0.04813]
[1737325564667,0.00768,104050.0,104030.0,0.40893]
[1737325564871,0.055804,104050.0,104040.0,0.53216546]
[1737325565060,0.00768,104050.0,104040.0,0.42818367]